Cogmind - Beta 13 X1 @@@ ROGUE MODE // 2024.03.31 @ 01:07:56 Player: Marlyn Result: Destroyed self with Rocket Launcher Performance ------------- Evolutions (0) 0 Regions Visited (3) 600 Robots Destroyed (33) 165 Value Destroyed (869) 869 Prototype IDs (0) 0 Alien Tech Used (0) 0 Bonus (19) 19 TOTAL SCORE: 1653 Bonus ------- Follower Combat Kills 160 Friendly Fire -141 Cogmind --------- Core Integrity 0/250 Matter 192/300 Energy 80/100 System Corruption 0% Temperature Cool (0) Movement Treading (160) Location -10/Subcaves Parts ------- > --- POWER (1) -------- (None) > --- PROPULSION (2) --- Improved Treads Improved Treads > --- UTILITY (2) ------ Large Storage Unit > --- WEAPON (2) ------- Assault Rifle Rocket Launcher > --- INVENTORY (15) --- Light Ion Engine Light Treads Aluminum Leg Transport Network Coupler EM Pulse Gun Subdweller Laser Rocket Launcher Rocket Launcher Rocket Launcher Shock Trap Shock Trap Shock Trap Scrap Shield Fragment (15) Peak State ------------ > --- POWER ------------ Light Nuclear Core > --- PROPULSION ------- Improved Treads Improved Treads > --- UTILITY ---------- Large Storage Unit > --- WEAPON ----------- Assault Rifle Rocket Launcher > --- INVENTORY -------- Light Ion Engine Light Treads Improved Treads Improved Treads Aluminum Leg Transport Network Coupler EM Pulse Gun Subdweller Laser Rocket Launcher Rocket Launcher Rocket Launcher Shock Trap Shock Trap Shock Trap [Rating: 13] Favorites ----------- Power Ion Engine Engine Ion Engine Power Core Light Nuclear Core Propulsion Improved Treads Treads Improved Treads Leg Aluminum Leg Utility Large Storage Unit Storage Large Storage Unit Weapon Assault Rifle Energy Gun Small Laser Ballistic Gun Assault Rifle Launcher Grenade Launcher Build | -11 -10 -10 -10 ------- Run | Jun Mat Min Sub Slots Evolved . | . . . . Power . | . . . . Propulsion . | . . . . Utility . | . . . . Weapon . | . . . . Parts Attached 21 | 2 6 7 6 Power 1 | . . 1 . Engine . | . . . . Core 1 | . . 1 . Reactor . | . . . . Propulsion 7 | 2 2 . 3 Treads 6 | 2 2 . 2 Leg 1 | . . . 1 Wheel . | . . . . Hover . | . . . . Flight . | . . . . Utility 3 | . 3 . . Device . | . . . . Storage 3 | . 3 . . Processor . | . . . . Hackware . | . . . . Protection . | . . . . Artifact . | . . . . Weapon 10 | . 1 6 3 Energy Gun 3 | . 1 1 1 Energy Cannon . | . . . . Ballistic Gun 2 | . . 2 . Ballistic Cannon . | . . . . Launcher 5 | . . 3 2 Special Weapon . | . . . . Impact Weapon . | . . . . Slashing Weapon . | . . . . Piercing Weapon . | . . . . Special Melee Weapon . | . . . . Unidentified Prototypes . | . . . . Parts Lost 6 | . 1 1 4 Power 1 | . . . 1 Propulsion 2 | . . . 2 Utility . | . . . . Weapon 3 | . 1 1 1 Highest Loss Streak 2 | . 1 1 2 To Critical Strikes . | . . . . Average Slot Usage (%) 83 | . 85 86 73 Engine 9 | . 14 8 . Core 3 | . . 5 5 Treads 27 | . 28 28 24 Storage 15 | . 16 15 14 Energy Gun 3 | . 2 2 6 Ballistic Gun 18 | . 23 15 14 Launcher 5 | . . 10 7 Naked Turns . | . . . . Heaviest Build 36 | 14 33 36 31 Greatest Support 46 | 40 46 46 46 Greatest Overweight (x) 1 | . . . 1 Average Overweight (x) . | . . . . Largest Inventory Capacity 25 | 8 25 15 15 Average Capacity 12 | 8 9 15 15 Most Carried 15 | 6 11 15 15 Average Carried 11 | 6 7 14 13 Final Capacity 15 | 8 15 15 15 Final Carried 14 | 6 11 14 13 Class Distribution -------------------- 100% | Mutant Dominant Class ---------------- Mutant | -10/Materials Mutant | -10/Mines Mutant | -10/Subcaves Resources | -11 -10 -10 -10 ----------- Run | Jun Mat Min Sub Matter Collected 872 | 210 373 180 109 Remotely . | . . . . Salvage Created 884 | . 648 99 137 Parts 63 | . 41 13 9 Haulers Intercepted 1 | . 1 . . Recyclers Shooed 3 | . 3 . . Parts Field Recycled . | . . . . Retrieved Matter . | . . . . Parts Self-Destructed . | . . . . Prevented . | . . . . Kills | -11 -10 -10 -10 ------- Run | Jun Mat Min Sub Combat Hostiles Destroyed 26 | . 14 7 5 Guns 16 | . 14 2 . AOE 10 | . . 5 5 Classes Destroyed 8 | . 6 1 1 Builder 2 | . . 2 . Hauler 1 | . 1 . . Recycler 1 | . 1 . . Operator 1 | . 1 . . Watcher 1 | . 1 . . Swarmer 6 | . 3 3 . Grunt 16 | . 11 4 1 Subdweller 5 | . . . 5 Best Kill Streak 4 | . 4 3 3 Combat Bots Only 4 | . 4 3 3 Max Kills in Single Turn 3 | . 1 3 1 Gunslinging . | . . . . Exploded 3 | . . 3 1 Melee . | . . . . Uniques/NPCs Destroyed . | . . . . Combat | -11 -10 -10 -10 -------- Run | Jun Mat Min Sub Damage Taken 1369 | . 530 392 447 Core 256 | . 81 50 125 Absorbed by Shields . | . . . . Core Remaining (%) 100 | 100 . . . Volleys Fired 99 | . 57 23 19 Largest 2 | . 2 2 2 Hottest 80 | . 40 60 80 Shots Fired 153 | . 104 28 21 Gun 129 | . 104 19 6 Cannon . | . . . . Launcher 24 | . . 9 15 Special . | . . . . Kinetic 126 | . 104 17 5 Thermal 3 | . . 2 1 Explosive 24 | . . 9 15 Electromagnetic . | . . . . Robot Hit Streak 14 | . 14 6 5 Robot Miss Streak 3 | . 2 3 1 Penetration Max . | . . . . Secondary Targets . | . . . . Shots Hit Robots 87 | . 69 9 9 Core Hits 59 | . 33 13 13 Critical Kills 1 | . 1 . . Critical Parts Destroyed 1 | . 1 . . Critical Strikes 2 | . 2 . . Destroy 2 | . 2 . . Melee Attacks . | . . . . Impact . | . . . . Slashing . | . . . . Piercing . | . . . . Sneak Attacks . | . . . . Combat Hostiles . | . . . . Follow-up Attacks . | . . . . Damage Inflicted 2486 | . 866 782 838 Guns 974 | . 865 83 26 Cannons . | . . . . Explosions 1489 | . . 682 807 Melee . | . . . . Ramming 23 | . 1 17 5 Kinetic 962 | . 865 71 26 Thermal 12 | . . 12 . Explosive 1489 | . . 682 807 Electromagnetic . | . . . . Impact . | . . . . Slashing . | . . . . Piercing . | . . . . Highest Corruption . | . . . . Average Corruption . | . . . . Corruption Purged . | . . . . Corruption Blocked . | . . . . Overload Shots . | . . . . Overflow Damage 3 | . . 3 . Projectiles . | . . . . Explosions 3 | . . 3 . Melee . | . . . . Knockbacks . | . . . . Impact . | . . . . Kinetic . | . . . . Secondary . | . . . . Self-Inflicted Damage 151 | . . 68 83 Shots 6 | . . 3 3 Rammed 6 | . 1 2 3 Targets Rammed 7 | . 1 3 3 Kicked . | . . . . Crushed 1 | . . 1 . Highest Temperature 38 | . 20 38 . Average Temperature 9 | . 5 11 . Received Heat Transfer 501 | . 285 180 36 Siege Activations . | . . . . Robots Corrupted . | . . . . Combat Hostiles . | . . . . Parts Fried . | . . . . Impact Corruptions . | . . . . Robots Melted . | . . . . Combat Hostiles . | . . . . Parts Melted . | . . . . Heat Transferred 25 | . . 25 . Parts Sabotaged . | . . . . Parts Stolen . | . . . . Parts Stripped . | . . . . Power Chain Reactions . | . . . . Missiles Intercepted . | . . . . Alert | -11 -10 -10 -10 ------- Run | Jun Mat Min Sub Peak Influence 318 | . 318 239 . Initial 84 | . . 84 . Average 160 | . 182 132 . Maximum Alert Level 1 | . 1 1 . Low Security (%) 59 | 100 50 70 . Level 1 40 | . 49 29 . Level 2 . | . . . . Level 3 . | . . . . Level 4 . | . . . . Level 5 . | . . . . High Security . | . . . . Max Security . | . . . . Squads Dispatched 5 | . 5 . . Investigation 3 | . 3 . . Extermination . | . . . . Reinforcement 2 | . 2 . . Assault . | . . . . Garrison . | . . . . Intercept . | . . . . Searches Triggered . | . . . . Construction Impeded . | . . . . Haulers Reinforced . | . . . . Active Scanning Responses . | . . . . Cargo Convoy Interrupts . | . . . . Stealth | -11 -10 -10 -10 --------- Run | Jun Mat Min Sub Distress Signals 3 | . 3 . . Communications Jammed . | . . . . Distress Signals . | . . . . Times Spotted 46 | . 28 10 8 Peak Tracking Total 4 | . 4 3 3 Tactical Retreats 3 | . 2 1 . Traps | -11 -10 -10 -10 ------- Run | Jun Mat Min Sub Traps Triggered 2 | . 2 . . Indirectly . | . . . . Trap Hack Attempts . | . . . . Triggered . | . . . . Disarmed . | . . . . Reprogrammed . | . . . . Reused . | . . . . Traps Extracted . | . . . . Installed . | . . . . Triggered . | . . . . Most Traps Carried 3 | . . 3 3 Machines | -11 -10 -10 -10 ---------- Run | Jun Mat Min Sub Machines Disabled 1 | . 1 . . Max in Single Turn 1 | . 1 . . Machines Repaired . | . . . . Machines Sabotaged . | . . . . Overloaded Fab Kills . | . . . . Hacking | -11 -10 -10 -10 --------- Run | Jun Mat Min Sub Machines Accessed 4 | . 4 . . Terminals 3 | . 3 . . Fabricators . | . . . . Repair Stations . | . . . . Recycling Units 1 | . 1 . . Scanalyzers . | . . . . Garrison Access . | . . . . Total Hacks 7 | . 7 . . Successful 1 | . 1 . . Failed 6 | . 6 . . Catastrophic 3 | . 3 . . Database Lockouts . | . . . . Manual 5 | . 5 . . Terminals 5 | . 5 . . Fabricators . | . . . . Repair Stations . | . . . . Recycling Units 2 | . 2 . . Scanalyzers . | . . . . Garrison Access . | . . . . Terminal Hacks . | . . . . Fabricator Hacks . | . . . . Repair Station Hacks . | . . . . Recycling Unit Hacks . | . . . . Scanalyzer . | . . . . Garrison Access Hacks . | . . . . Unauthorized Hacks 1 | . 1 . . Terminals 1 | . 1 . . Assimilate 1 | . 1 . . Fabricators . | . . . . Repair Stations . | . . . . Recycling Units . | . . . . Scanalyzers . | . . . . Garrison Access . | . . . . Data Cores Recovered . | . . . . Used . | . . . . Hacking Detections 2 | . 2 . . Full Trace Events 1 | . 1 . . Feedback Events . | . . . . Feedback Blocked . | . . . . Robot Schematics Acquired . | . . . . Robots Built . | . . . . Authchips . | . . . . Time . | . . . . Total Robot Build Rating . | . . . . Part Schematics Acquired . | . . . . Parts Built . | . . . . Authchips . | . . . . Time . | . . . . Total Part Build Rating . | . . . . Parts Repaired . | . . . . Time . | . . . . Parts Recycled . | . . . . Recycled Matter . | . . . . Retrieved Matter . | . . . . Retrieved Components . | . . . . Parts Scanalyzed . | . . . . Part Schematics Acquired . | . . . . Parts Damaged . | . . . . Bothacking | -11 -10 -10 -10 ------------ Run | Jun Mat Min Sub Used RIF Installer . | . . . . Robots Hacked . | . . . . Non-combat . | . . . . Combat . | . . . . Robot Hacks Applied . | . . . . Relay Couplers Released . | . . . . Fabnet Peak Effective % . | . . . . Robots Rewired . | . . . . Allies Hacked . | . . . . Hacks Repelled . | . . . . Allies | -11 -10 -10 -10 -------- Run | Jun Mat Min Sub Total Allies 3 | . . 3 . Largest Group 3 | . . 3 1 Highest-Rated Group 40 | . . 40 16 Highest-Rated Ally 16 | . . 16 16 Total Orders . | . . . . Ally Attacks 25 | . . 13 12 Total Damage 280 | . . 124 156 Kills 5 | . . 2 3 Allies Corrupted . | . . . . Allies Melted . | . . . . Intel | -11 -10 -10 -10 ------- Run | Jun Mat Min Sub Robot Analysis Total . | . . . . Derelict Logs Recovered 1 | . . 1 . Drone Launches . | . . . . Drone Recoveries . | . . . . Exploration | -11 -10 -10 -10 ------------- Run | Jun Mat Min Sub Turns Passed 2402 | 10 1107 833 452 Spaces Moved 1239 | 5 543 460 231 Core . | . . . . Treads 1239 | 5 543 460 231 Legs . | . . . . Wheels . | . . . . Hover . | . . . . Flight . | . . . . Fastest Speed 160 | 160 160 160 160 Average Speed 162 | 160 160 160 173 Slowest Speed 240 | 160 160 160 240 Overloaded Moves . | . . . . Propulsion Burnouts . | . . . . Robots Hopped . | . . . . Cave-ins Triggered . | . . . . Exploration Rate (%) 41 | 2 61 85 17 Regions Visited 3 Branch Regions 2 Pre-discovered Areas . | . . . . Known Exits Taken . | . . . . Unknown Exits Taken 3 | 1 1 1 . Scrap Searched 1 | . . 1 . Spaces Dug 41 | . . 27 14 Terrain Destroyed 145 | . . 66 79 Melee . | . . . . Projectile . | . . . . AOE 145 | . . 66 79 Terrain Rammed . | . . . . Walls Destroyed . | . . . . Machines Disabled . | . . . . Actions | -11 -10 -10 -10 --------- Run | Jun Mat Min Sub Total 1474 | 6 678 529 261 Wait 87 | . 59 28 . Move 1236 | 4 542 459 231 Hop . | . . . . Pick Up 14 | . 7 5 2 Fast Attach 3 | . 3 . . Attach 4 | . . 1 3 Detach 2 | . 1 1 . Swap 14 | 2 3 6 3 Drop 8 | . 5 3 . Fire 99 | . 57 23 19 Melee . | . . . . Ram . | . . . . Kick . | . . . . Crush 7 | . 1 3 3 Escape Stasis . | . . . . Rewire . | . . . . Trap . | . . . . Miscellaneous . | . . . . Route ------- -11/Junkyard -10/Materials (discovered 3 exits: [*Mat x2] / [*Min]) -10/Mines -10/Subcaves History --------- Turn | Location | Event 4 | -11/Junkyard | Discovered new exit (range 3) 11 | -11/Junkyard | Entered Materials 317 | -10/Materials | Build established: Mutant 376 | -10/Materials | Discovered new exit (range 11) 512 | -10/Materials | Discovered new exit (range 16) 876 | -10/Materials | Discovered new exit (range 15) 1118 | -10/Materials | Entered Mines 1295 | -10/Mines | Found a hidden stash of uninstalled traps 1333 | -10/Mines | Learned Materials security intel 1405 | -10/Mines | Assisted by bots powering up and referring to "LRC-V3" 1689 | -10/Mines | Core integrity fell below 50% 1937 | -10/Mines | Discovered new exit (range 10) 1951 | -10/Mines | Entered Subcaves 1951 | -10/Subcaves | Accompanied by 1 ally 1960 | -10/Subcaves | A Subdweller sparked back to life 1960 | -10/Subcaves | A Subdweller sparked back to life 2011 | -10/Subcaves | A swath of the cavern ceiling suddenly collapsed 2035 | -10/Subcaves | Core integrity fell below 20% 2403 | -10/Subcaves | Destroyed self with Rocket Launcher Last Messages --------------- 02043_ The unstable cave ceiling collapses. 02054_ Acquired 17 matter. 02128_ Imp. Treads destroyed. 02132_ 9T-ITY(R) destroyed. 02136_ Lgt. Nuclear Core destroyed. 02142_ Destroyed Scrap Shield. 02144_ J6-PJG(R) destroyed. 02151_ H2-I1Z(R): "HIDIE!" 02153_ H2-I1Z(R) destroyed. 02161_ UA-T8H(u) builds Twisted Machinery. 02163_ The unstable cave ceiling collapses. 02163_ UA-T8H(u) builds Twisted Machinery. 02165_ Acquired 16 matter. 02166_ UA-T8H(u) builds Twisted Machinery. 02171_ The unstable cave ceiling collapses. 02178_ Acquired 3 matter. 02181_ The unstable cave ceiling collapses. 02195_ Acquired 7 matter. 02340_ Acquired 13 matter. 02348_ Acquired 14 matter. Map ----- +----------------------------------------------------+ | ???????????????????????????????????????????? | | ???????????????????????????????????????????? | | ???????????????????????????????????????????? | | ???????????????????????????????????????????? | | ???????????????????????????????????????????? | | ???????????????????????????????????????????? | | ???????????????????????????????????????????? | | ???????????????????????????????????????????? | | ???????????????????????????????????????????? | | ???????????????????????????????????????????? | | ???????????????????????????????????????????? | | ???????????????????????????????????????????? | | ???????????????????????????????????????????? | | ???????????????? ??????????????????????????? | | ?????????????? ?????????????????????????? | | ?????????????? ?????????????????????????? | | ????????????? Y ????????????????????????? | | ?????????????? ???????????????????????? | | ??????????????? ??##??????????????????? | | ???#####????????# ### ??????????????????? | | ???# ##???????? # ##????????????????? | | #### #####?????# ###??????????????? | | ## ### ##????? ##?????????????? | | ## ##?????? #?????????????? | | ## #???????? #??????????????? | | ### ##?????????#@ #??????????????? | | ### ##???????#### #??????????????? | | #???????## ##?????????????? | | ### #???????# #?????????????? | | #### #????##### #?????????????? | | ?## ## ##?### ### #?????????????? | | ## ### ### #?????????????? | | #?## ### #?????????????? | | #??# #??##?????????????? | | # ### ##????????????????? | | ## #### ###??????????????? | | ?## ##?#### ##?????????????? | | #### ####?## ## #?????????????? | | ### #??# ##### #?????????????? | | ## ## ##?# ##??## ##?????????????? | | ## ### #???# #??????????????? | | ## ## ## #??## #??????????????? | | ## ## #### #??????????????? | | ### ## #??????????????? | | ### #??????????????? | | ## #??????????????? | | ###### ### ##??????????????? | | ?????#####?## ##???????????????? | | ????????????### #####????????????????? | | ??????????????# #????????????????????? | +----------------------------------------------------+ Best States ------------- Heat Dissipation 25 Energy Generation 14 Energy Capacity 250 Matter Stores 300 Matter Capacity 300 Sight Range 16 Terrain Scan Density 10 Evasion (%) 40 Recoil Reduction 2 Item Schematics ----------------- None Robot Schematics ------------------ None Fabricated ------------ Nothing Alien Tech Used ----------------- None Achievements -------------- None Challenges ------------ None Game ------ Seed SpectralSwarmBay Manual? 0 Play Time 00:17:16 Cumulative 121.9 hours Start 2023.10.01 @ 13:59:43 End 2024.03.31 @ 01:07:56 Sessions 1 Manual Loads 0 Difficulty Rogue Special Mode None Game No. 95 Rogue 95 Adventurer 0 Explorer 0 Win Type - Total 0 Types 0/0/0/0/0/0/0/0/0 Lore% 53 Gallery% 62 Achievement% 45 Wizard Run 0 Options --------- ASCII 0 Keyboard 0 Movement Vi Keybinds 0 Fullscreen 1 Font 18/SmallcapsGlow Map View 76x50 Tactical HUD 1 Map Filters NONE Filters LOW_CONTRAST(13,24,33) Steam 1 RUN: f3d047a3-098a-4c8c-95b7-e63612e7d497